Cogmind - Beta 17.1 @@@ ROGUE MODE // 2026.08.28 @ 17:05:48 Player: Limbermonkey Result: Destroyed by as-76204 with Assembled Heavy Rifle Performance ------------- Evolutions (0) 0 Regions Visited (2) 400 Robots Destroyed (5) 25 Value Destroyed (43) 43 Prototype IDs (0) 0 Alien Tech Used (0) 0 Bonus (0) 0 TOTAL SCORE: 468 Bonus ------- None Cogmind --------- Core Integrity 0/250 Matter 5/300 Energy 54/100 System Corruption 0% Temperature Cool (0) Movement Core (350) Ox6 Location -10/Mines Parts ------- > --- POWER (1) -------- (None) > --- PROPULSION (2) --- (None) > --- UTILITY (2) ------ Large Storage Unit Signal Interpreter > --- WEAPON (2) ------- Light Assault Rifle > --- INVENTORY (15) --- Small Storage Unit Medium Battery (150) Sensor Array Seismic Detector Seismic Detector Propulsion Shielding Mining Laser Mining Laser Peak State ------------ > --- POWER ------------ Ion Engine > --- PROPULSION ------- Wheel Wheel > --- UTILITY ---------- Large Storage Unit Seismic Detector > --- WEAPON ----------- Medium Laser Light Assault Rifle > --- INVENTORY -------- Light Ion Engine Light Treads Light Treads Aluminum Leg Aluminum Leg Small Storage Unit Sensor Array Signal Interpreter Propulsion Shielding Light Assault Rifle [Rating: 8] Favorites ----------- Power Ion Engine Engine Ion Engine Propulsion Wheel Treads Light Treads Leg Aluminum Leg Wheel Wheel Utility Large Storage Unit Device Seismic Detector Storage Large Storage Unit Processor Signal Interpreter Weapon Light Assault Rifle Energy Gun Medium Laser Ballistic Gun Light Assault Rifle Launcher Grenade Launcher Special Weapon Mining Laser Build | -11 -10 -10 ------- Run | Yrd Mat Min Slots Evolved . | . . . Power . | . . . Propulsion . | . . . Utility . | . . . Weapon . | . . . Parts Attached 20 | . 13 7 Power 2 | . 2 . Engine 2 | . 2 . Core . | . . . Reactor . | . . . Propulsion 7 | . 6 1 Treads 2 | . 2 . Leg 2 | . 2 . Wheel 3 | . 2 1 Hover . | . . . Flight . | . . . Utility 4 | . 4 . Device 2 | . 2 . Storage 1 | . 1 . Processor 1 | . 1 . Hackware . | . . . Protection . | . . . Artifact . | . . . Weapon 7 | . 1 6 Energy Gun . | . . . Energy Cannon . | . . . Ballistic Gun 2 | . . 2 Ballistic Cannon . | . . . Launcher 4 | . . 4 Special Weapon 1 | . 1 . Impact Weapon . | . . . Slashing Weapon . | . . . Piercing Weapon . | . . . Special Melee Weapon . | . . . Unidentified Prototypes . | . . . Parts Lost 12 | . 1 11 Power 1 | . . 1 Propulsion 5 | . 1 4 Utility . | . . . Weapon 6 | . . 6 Highest Loss Streak 11 | . 1 11 To Critical Strikes . | . . . Average Backups 12 | 6 11 14 Power . | 1 . . Propulsion 3 | 4 3 2 Utility 4 | . 3 5 Weapon 4 | 1 3 6 Tool/Special . | . . . Unused Backups 4 | . . 4 Power . | . . . Propulsion . | . . . Utility 4 | . . 4 Weapon . | . . . Tool/Special . | . . . Average Slot Usage (%) 96 | . 99 91 Engine 12 | . 14 10 Treads 11 | . 10 14 Wheel 15 | . 17 10 Device 3 | . 5 . Storage 14 | . 14 14 Processor 10 | . 8 14 Energy Gun 8 | . 13 . Ballistic Gun 11 | . 14 7 Launcher 2 | . . 7 Special Weapon 4 | . . 10 Peak Build Rating 8 | 6 8 8 Average Rating 7 | 6 7 7 On Entrance 6 | 6 6 8 Avg Prop Armor Cover (%) 13 | . 13 . Naked Turns . | . . . Heaviest Build 29 | 13 29 27 Greatest Support 40 | 20 40 40 Greatest Overweight (x) 2 | . 2 2 Average Overweight (x) . | . . . Largest Inventory Capacity 15 | 8 15 15 Average Capacity 13 | 8 13 15 Most Carried 15 | 6 15 15 Average Carried 12 | 6 11 14 Final Capacity 15 | 8 15 15 Final Carried 15 | 6 15 8 Class Distribution -------------------- 100% | Mutant Dominant Class ---------------- Mutant | -10/Materials Mutant | -10/Mines Resources | -11 -10 -10 ----------- Run | Yrd Mat Min Matter Collected 295 | 200 47 48 Remotely . | . . . Salvage Created 137 | . 47 90 Parts 2 | . 1 1 Haulers Intercepted . | . . . Recyclers Shooed . | . . . Parts Field Recycled . | . . . Retrieved Matter . | . . . Parts Self-Destructed . | . . . Prevented . | . . . Parts Restored . | . . . Kills | -11 -10 -10 ------- Run | Yrd Mat Min Combat Hostiles Destroyed 10 | . 3 7 Guns 3 | . 3 . AOE 7 | . . 7 Classes Destroyed 4 | . 1 3 Tunneler 1 | . . 1 Recycler 1 | . . 1 Swarmer 3 | . 3 . Assembled 7 | . . 7 Best Kill Streak 9 | . 3 9 Combat Bots Only 7 | . 3 7 Max Kills in Single Turn 2 | . 1 2 Gunslinging . | . . . Exploded 2 | . . 2 Melee . | . . . Uniques/NPCs Destroyed . | . . . Combat | -11 -10 -10 -------- Run | Yrd Mat Min Hostile Shots Fired 92 | . 47 45 Missed 24 | . 10 14 Hits 68 | . 37 31 Projectile 68 | . 37 31 AOE 17 | . . 17 Damage Taken 1298 | . 305 993 Core 253 | . 68 185 Absorbed by Shields . | . . . Core Remaining (%) 100 | 100 . . Volleys Fired 29 | . 13 16 Largest 2 | . 2 2 Hottest 70 | . 70 60 Shots Fired 45 | . 26 19 Gun 28 | . 26 2 Cannon . | . . . Launcher 17 | . . 17 Special . | . . . Kinetic 15 | . 13 2 Thermal 13 | . 13 . Explosive 17 | . . 17 Electromagnetic . | . . . Robot Hit Streak 5 | . 5 4 Robot Miss Streak 4 | . 4 2 Penetration Max . | . . . Secondary Targets . | . . . Shots Hit Robots 20 | . 15 5 Core Hits 24 | . 4 20 Critical Kills . | . . . Critical Parts Destroyed . | . . . Critical Strikes 1 | . 1 . Burn 1 | . 1 . Melee Attacks . | . . . Impact . | . . . Slashing . | . . . Piercing . | . . . Sneak Attacks . | . . . Combat Hostiles . | . . . Follow-up Attacks . | . . . Damage Inflicted 820 | . 189 631 Guns 188 | . 188 . Cannons . | . . . Explosions 631 | . . 631 Melee . | . . . Ramming 1 | . 1 . Kinetic 89 | . 89 . Thermal 99 | . 99 . Explosive 631 | . . 631 Electromagnetic . | . . . Impact . | . . . Slashing . | . . . Piercing . | . . . Highest Corruption . | . . . Average Corruption . | . . . Corruption Purged . | . . . Corruption Blocked . | . . . Overload Shots . | . . . Overflow Damage 13 | . . 13 Projectiles . | . . . Explosions 13 | . . 13 Melee . | . . . Knockbacks . | . . . Impact . | . . . Kinetic . | . . . Secondary . | . . . Self-Inflicted Damage 61 | . . 61 Shots 3 | . . 3 Rammed 1 | . 1 . Targets Rammed 1 | . 1 . Kicked . | . . . Crushed . | . . . Highest Temperature 132 | . 132 . Average Temperature 74 | . 74 . Received Heat Transfer . | . . . Siege Activations . | . . . Martial Activations . | . . . Shielding Activations . | . . . Robots Disrupted . | . . . Combat Hostiles . | . . . Robots Corrupted . | . . . Combat Hostiles . | . . . Parts Fried . | . . . Impact Corruptions . | . . . Robots Melted . | . . . Combat Hostiles . | . . . Parts Melted 2 | . 2 . Heat Transferred 370 | . 370 . Parts Sabotaged . | . . . Parts Stolen . | . . . Parts Stripped . | . . . Power Chain Reactions . | . . . Alert | -11 -10 -10 ------- Run | Yrd Mat Min Maximum Alert Level . | . . . Low Security (%) 100 | 100 100 100 Level 1 . | . . . Level 2 . | . . . Level 3 . | . . . Level 4 . | . . . Level 5 . | . . . High Security . | . . . Max Security . | . . . Peak Influence 70 | . 70 17 Initial 12 | . . 12 Average 7 | . 9 2 Influence Increases 137 | . 74 63 Destroy 0b10 Robot/C 60 | . 60 . Destroy 0b10 Robot/NC 10 | . . 10 Destroy Leader 10 | . 10 . Successful Hack 4 | . 4 . Destroy Structure 53 | . . 53 Influence Decreases 137 | . 42 95 Entered New Map 20 | . . 20 Time Decay 60 | . 42 18 Lost Part 57 | . . 57 Squads Dispatched 1 | . 1 . Investigation . | . . . Extermination . | . . . Reinforcement 1 | . 1 . Assault . | . . . Garrison . | . . . Intercept . | . . . Searches Triggered . | . . . Construction Impeded . | . . . Haulers Reinforced . | . . . Active Scanning Responses . | . . . Cargo Convoy Interrupts . | . . . Stealth | -11 -10 -10 --------- Run | Yrd Mat Min Distress Signals 1 | . . 1 Communications Jammed . | . . . Distress Signals . | . . . Times Spotted 19 | . 4 15 Peak Tracking Total 22 | . 3 22 Tactical Retreats 1 | . . 1 Traps | -11 -10 -10 ------- Run | Yrd Mat Min Traps Triggered . | . . . Indirectly . | . . . Trap Hack Attempts . | . . . Triggered . | . . . Disarmed . | . . . Reprogrammed . | . . . Reused . | . . . Traps Extracted . | . . . Installed . | . . . Triggered . | . . . Machines | -11 -10 -10 ---------- Run | Yrd Mat Min Machines Disabled . | . . . Max in Single Turn . | . . . Machines Repaired . | . . . Machines Dismantled . | . . . Machines Sabotaged . | . . . Overloaded Fab Kills . | . . . Hacking | -11 -10 -10 --------- Run | Yrd Mat Min Machines Accessed 2 | . 2 . Terminals 2 | . 2 . Fabricators . | . . . Repair Stations . | . . . Recycling Units . | . . . Scanalyzers . | . . . Garrison Access . | . . . Total Hacks 5 | . 5 . Successful 2 | . 2 . Failed 3 | . 3 . Catastrophic . | . . . Database Lockouts . | . . . Manual 5 | . 5 . Terminals 5 | . 5 . Fabricators . | . . . Repair Stations . | . . . Recycling Units . | . . . Scanalyzers . | . . . Garrison Access . | . . . Terminal Hacks . | . . . Fabricator Hacks . | . . . Repair Station Hacks . | . . . Recycling Unit Hacks . | . . . Scanalyzer . | . . . Garrison Access Hacks . | . . . Unauthorized Hacks 2 | . 2 . Terminals 2 | . 2 . Botnet 2 | . 2 . Fabricators . | . . . Repair Stations . | . . . Recycling Units . | . . . Scanalyzers . | . . . Garrison Access . | . . . Data Cores Recovered . | . . . Used . | . . . Hacking Detections 2 | . 2 . Full Trace Events . | . . . Feedback Events . | . . . Feedback Blocked . | . . . Robot Schematics Acquired . | . . . Robots Built . | . . . Authchips . | . . . Time . | . . . Total Robot Build Rating . | . . . Part Schematics Acquired . | . . . Parts Built . | . . . Authchips . | . . . Time . | . . . Total Part Build Rating . | . . . Part Studies Acquired . | . . . Parts Repaired . | . . . Time . | . . . Parts Recycled . | . . . Recycled Matter . | . . . Retrieved Matter . | . . . Retrieved Components . | . . . Parts Scanalyzed . | . . . Part Schematics Acquired . | . . . Parts Damaged . | . . . Bothacking | -11 -10 -10 ------------ Run | Yrd Mat Min Used RIF Installer . | . . . Robots Hacked . | . . . Non-combat . | . . . Combat . | . . . Robot Hacks Applied . | . . . Relay Couplers Released . | . . . Fabnet Peak Effective % . | . . . Robots Rewired . | . . . Allies Hacked . | . . . Hacks Repelled . | . . . Allies | -11 -10 -10 -------- Run | Yrd Mat Min Total Allies . | . . . Largest Group . | . . . Highest-Rated Group . | . . . Highest-Rated Ally . | . . . Total Orders . | . . . Ally Attacks . | . . . Total Damage . | . . . Kills . | . . . Allies Corrupted . | . . . Allies Melted . | . . . Intel | -11 -10 -10 ------- Run | Yrd Mat Min Active Infowar (turns) 163 | . 163 . Seismic 163 | . 163 . Robot Analysis Total . | . . . Derelict Logs Recovered 1 | . . 1 Drone Launches . | . . . Drone Recoveries . | . . . Exploration | -11 -10 -10 ------------- Run | Yrd Mat Min Turns Passed 631 | 5 408 218 Spaces Moved 313 | 5 183 125 Core . | . . . Treads 94 | . 34 60 Legs 5 | 5 . . Wheels 214 | . 149 65 Hover . | . . . Flight . | . . . Fastest Speed 95 | 120 95 95 Average Speed 116 | 120 107 127 Slowest Speed 160 | 120 160 160 Overloaded Moves . | . . . Propulsion Burnouts . | . . . Robots Hopped . | . . . Potential Cave-ins . | . . . Cave-ins Triggered . | . . . Exploration Rate (%) 25 | 2 39 36 Regions Visited 2 Branch Regions 1 Pre-discovered Areas . | . . . Known Exits Taken 1 | . 1 . Unknown Exits Taken 1 | 1 . . Scrap Searched 1 | . . 1 Spaces Dug . | . . . Terrain Destroyed 76 | . . 76 Melee . | . . . Projectile . | . . . AOE 76 | . . 76 Terrain Rammed . | . . . Walls Destroyed . | . . . Machines Disabled . | . . . Actions | -11 -10 -10 --------- Run | Yrd Mat Min Total 537 | 4 368 165 Wait 146 | . 137 9 Move 311 | 4 182 125 Hop . | . . . Pick Up 14 | . 13 1 Fast Attach 2 | . 1 1 Attach 12 | . 5 7 Detach 4 | . 3 1 Swap 13 | . 10 3 Drop 5 | . 3 2 Fire 29 | . 13 16 Melee . | . . . Ram 1 | . 1 . Kick . | . . . Crush . | . . . Escape Stasis . | . . . Rewire . | . . . Trap . | . . . Miscellaneous . | . . . Route ------- -11/Scrapyard -10/Materials (discovered 2 exits: *Mat / *Min) -10/Mines History --------- Turn | Location | Event 1 | -11/Scrapyard | Discovered new exit (range 3) 6 | -11/Scrapyard | Entered Materials 175 | -10/Materials | Discovered new exit (range 10) 186 | -10/Materials | Identified exit to Materials 195 | -10/Materials | Discovered new exit (range 16) 312 | -10/Materials | Build established: Mutant 385 | -10/Materials | Identified exit to Mines 414 | -10/Materials | Entered Mines 426 | -10/Mines | Learned Materials garrison access intel 544 | -10/Mines | Assembled infested the area 613 | -10/Mines | Core integrity fell below 50% 627 | -10/Mines | Core integrity fell below 20% 630 | -10/Mines | Destroyed 7 combat bots 632 | -10/Mines | Destroyed by as-76204 with Assembled Heavy Rifle Last Messages --------------- 00612_ D-53 Grenadier unfolds itself. 00612_ Wheel destroyed. 00612_ U-05 Engineer lays Concrete. 00613_ U-05 Engineer builds a Wall. 00615_ Destroyed Wheel. 00615_ T-07 Excavator destroyed. 00616_ Grenade Launcher destroyed. 00617_ U-05 Engineer builds a Wall. 00620_ The unstable cave ceiling collapses. 00622_ U-05 Engineer lays Concrete. 00624_ U-05 Engineer builds a Wall. 00625_ The unstable cave ceiling collapses. 00626_ Grenade Launcher destroyed. 00626_ Lgt. Treads destroyed. 00626_ Grenade Launcher destroyed. 00628_ U-05 Engineer lays Concrete. 00628_ Lgt. Assault Rifle destroyed. 00628_ D-53 Grenadier destroyed. 00629_ The unstable cave ceiling collapses. 00629_ U-05 Engineer lays Concrete. Map ----- +----------------------------------------------------+ | ?????????????????????????????????????????????????? | | ?????????????????????????????????????????????????? | | ?????????????????????????????????????????????????? | | ?????????????????????????????????????????????????? | | ?????????????????????????????????????????????????? | | ?????????????????????????????????????????????????? | | ?????????????????????????????????????????????????? | | ?????????????????????????????????????????????????? | | ?????????????????????????????????????????????????? | | ?????????????????????????????????????????????????? | | ?????????????????????????????????????????????????? | | ?????????????????????????????????????????????????? | | ?????????????????????????????????????????????????? | | ???????? ????????????????????????????????????????? | | ??????? ????????????????????? ??????????????????? | | ??????? ????????????????????? ??????????????????? | | ???????# ????????????????????? #?????????????????? | | ??????## ??????????????####?? ###? ##???????????? | | ?????## ????????????### ### ? #???????????? | | ?????# ??????#????## ## #???????????? | | ????? ??????# ?## # #???????????? | | ?????? ??????# ## t ##??????????? | | ??????# #?????# # ##?????????? | | ?????## ##????# d ?????????? | | ????## ##????### #????????????? | | ???## ##???### @ #????????????? | | ???# #???# ##????????????? | | ???# # #?????????????? | | ???# = | #?????????????? | | ???## = #?????????????? | | ????## [%% # #?????????????? | | ?????## =! u ##?????????????? | | ?????## % # ## ##??????????????? | | ????## a # ### #???????????????? | | ???## ###### #### #???????????????? | | ??## ## ##??# #???????????????? | | ??# #### ##########???# #???????????????? | | ??# ##??####????????????# #???????????????? | | ??## #???????????????##### #???????????????? | | ???## #???????????????# #???????????????? | | ????## ##???????????????# ### #???????????????? | | ?????## #????????????????# #?# #???????????????? | | ??????# #????????????????# #?# #???????????????? | | ??????# #????????????????# #?# #???????????????? | | ??????# #????????????????# #?# #???###?????????? | | ??????# #????????????????# #?# #?## ##????????? | | ??????# #????????????????# #?# ### #????????? | | ??????# #????????????????# #?# ## #????????? | | ??????# #????????????????# #?# #????????? | | ??????# #????????????????# #?##### ##????????? | +----------------------------------------------------+ Best States ------------- Heat Dissipation 25 Energy Generation 10 Energy Capacity 250 Matter Stores 280 Matter Capacity 300 Sight Range 16 Terrain Scan Density 10 Evasion (%) 41 Recoil Reduction 2 Item Schematics ----------------- None Robot Schematics ------------------ None Fabricated ------------ Nothing Repaired ---------- Nothing Studied --------- None Alien Tech Used ----------------- None Achievements -------------- Hunted Challenges ------------ None Game ------ Seed MomentumIntegratedObfuscator Manual? 0 Play Time 00:19:07 Cumulative 37.1 hours Start 2026.08.28 @ 16:48:57 End 2026.08.28 @ 17:05:48 Sessions 1 Manual Loads 0 Difficulty Rogue Special Mode None Game No. 27 Rogue 5 Adventurer 22 Explorer 0 Win Type - Total 0 Types 0/0/0/0/0/0/0/0/0/0 Lore% 17 Gallery% 25 Achievement% 20 Wizard Run 0 Options --------- Layout 1 ASCII 1 Keyboard 1 Movement Numpad Keybinds 0 Fullscreen 1 Font 48/Smallcaps Map View 50x35 Zoom Use 0% Tactical HUD 1 Map Filters NONE Filters NONE Steam 1 RUN: c86ae75f-430e-4b3d-882d-f49a0738a976